[Event "*** Titled Tuesday Blitz"]
[Site "Chess.com"]
[Date "2020.04.14"]
[Round "6"]
[White "Nafania1"]
[Black "paradise10"]
[Result "1/2-1/2"]
[WhiteElo "2376"]
[BlackElo "2723"]
[TimeControl "180+1"]
[EndTime "10:57:55 PDT"]
[Termination "Game drawn by agreement"]

1. e4 {[%clk 0:03:00.9]} 1... c5 {[%clk 0:02:58.7]} 2. Nf3 {[%clk 0:03:00.6]}
2... a6 {[%clk 0:02:52.8]} 3. c4 {[%clk 0:02:59.6]} 3... d6 {[%clk 0:02:50.7]}
4. d4 {[%clk 0:02:58.3]} 4... cxd4 {[%clk 0:02:49.5]} 5. Nxd4 {[%clk 0:02:58.3]}
5... Nf6 {[%clk 0:02:50]} 6. Nc3 {[%clk 0:02:58.3]} 6... e6 {[%clk 0:02:50.5]}
7. Be3 {[%clk 0:02:57.9]} 7... Be7 {[%clk 0:02:49.4]} 8. Be2 {[%clk 0:02:56.6]}
8... b6 {[%clk 0:02:48.8]} 9. O-O {[%clk 0:02:55.9]} 9... Bb7 {[%clk 0:02:48.2]}
10. f3 {[%clk 0:02:55.9]} 10... O-O {[%clk 0:02:47.2]} 11. Qd2 {[%clk
0:02:56.2]} 11... Nbd7 {[%clk 0:02:46.9]} 12. a4 {[%clk 0:02:45.6]} 12... Rc8
{[%clk 0:02:44.3]} 13. a5 {[%clk 0:02:44.7]} 13... bxa5 {[%clk 0:02:40.4]} 14.
Nb3 {[%clk 0:02:44.9]} 14... Ne5 {[%clk 0:02:29]} 15. Nxa5 {[%clk 0:02:44.4]}
15... Ba8 {[%clk 0:02:27.2]} 1/2-1/2

[Event "*** Titled Tuesday Blitz"]
[Site "Chess.com"]
[Date "2020.04.14"]
[Round "6"]
[White "varacalli"]
[Black "HarryCun"]
[Result "1-0"]
[WhiteElo "2381"]
[BlackElo "2136"]
[TimeControl "180+1"]
[EndTime "10:58:48 PDT"]
[Termination "varacalli won by resignation"]

1. e4 {[%clk 0:03:00.9]} 1... c6 {[%clk 0:03:00.7]} 2. d4 {[%clk 0:03:00.7]}
2... d5 {[%clk 0:03:01.6]} 3. Nd2 {[%clk 0:03:00.5]} 3... dxe4 {[%clk
0:03:01.6]} 4. Nxe4 {[%clk 0:03:01.4]} 4... Bf5 {[%clk 0:03:01.5]} 5. Ng3 {[%clk
0:03:01.8]} 5... Bg6 {[%clk 0:03:01.7]} 6. h4 {[%clk 0:03:02]} 6... h6 {[%clk
0:03:01.7]} 7. Nh3 {[%clk 0:03:02.5]} 7... e6 {[%clk 0:03:00.6]} 8. Nf4 {[%clk
0:03:02.6]} 8... Bh7 {[%clk 0:03:00.7]} 9. Bc4 {[%clk 0:03:03.2]} 9... Bd6
{[%clk 0:02:58.5]} 10. Ngh5 {[%clk 0:02:58.9]} 10... Bxf4 {[%clk 0:02:57.2]} 11.
Bxf4 {[%clk 0:02:55.3]} 11... Qa5+ {[%clk 0:02:56.1]} 12. c3 {[%clk 0:02:46.6]}
12... Nf6 {[%clk 0:02:49.7]} 13. Nxg7+ {[%clk 0:02:36.5]} 13... Kf8 {[%clk
0:02:47]} 14. Bxh6 {[%clk 0:02:32.2]} 14... Bg6 {[%clk 0:02:43]} 15. Nxe6+
{[%clk 0:02:20.7]} 15... Ke7 {[%clk 0:02:43]} 16. Bg7 {[%clk 0:02:13.2]} 16...
Rg8 {[%clk 0:02:39.7]} 17. Bxf6+ {[%clk 0:02:12.2]} 17... Kxf6 {[%clk
0:02:39.5]} 18. Ng5 {[%clk 0:02:10.5]} 18... Re8+ {[%clk 0:02:36.6]} 19. Kf1
{[%clk 0:02:09.7]} 19... b5 {[%clk 0:02:35.4]} 20. Qf3+ {[%clk 0:02:08.3]} 20...
Kg7 {[%clk 0:02:34.4]} 21. Bxf7 {[%clk 0:02:03.3]} 21... Rf8 {[%clk 0:02:34.3]}
22. Ne6+ {[%clk 0:02:03.3]} 22... Kh8 {[%clk 0:02:33.2]} 23. Nxf8 {[%clk
0:02:03.6]} 1-0

[Event "*** Titled Tuesday Blitz"]
[Site "Chess.com"]
[Date "2020.04.14"]
[Round "6"]
[White "Leo_C"]
[Black "KingChess345"]
[Result "0-1"]
[WhiteElo "2245"]
[BlackElo "2086"]
[TimeControl "180+1"]
[EndTime "10:59:06 PDT"]
[Termination "KingChess345 won by resignation"]

1. d4 {[%clk 0:03:00.9]} 1... Nf6 {[%clk 0:02:59]} 2. c4 {[%clk 0:03:00.2]} 2...
e6 {[%clk 0:02:59.2]} 3. Nc3 {[%clk 0:02:59.5]} 3... Bb4 {[%clk 0:02:59.6]} 4.
e3 {[%clk 0:02:59.8]} 4... b6 {[%clk 0:02:59.7]} 5. Nf3 {[%clk 0:02:55.6]} 5...
Ne4 {[%clk 0:02:59.3]} 6. Qc2 {[%clk 0:02:54.4]} 6... Bb7 {[%clk 0:02:58.3]} 7.
Bd3 {[%clk 0:02:54]} 7... f5 {[%clk 0:02:57.3]} 8. a3 {[%clk 0:02:52.5]} 8...
Bxc3+ {[%clk 0:02:57.4]} 9. bxc3 {[%clk 0:02:53.4]} 9... O-O {[%clk 0:02:57.5]}
10. O-O {[%clk 0:02:52.2]} 10... d6 {[%clk 0:02:57.6]} 11. Nd2 {[%clk
0:02:50.5]} 11... Qh4 {[%clk 0:02:58]} 12. f3 {[%clk 0:02:46.3]} 12... Nxd2
{[%clk 0:02:57.2]} 13. Bxd2 {[%clk 0:02:47.2]} 13... Nd7 {[%clk 0:02:57.2]} 14.
d5 {[%clk 0:02:43.4]} 14... Nc5 {[%clk 0:02:43.4]} 15. dxe6 {[%clk 0:02:39.7]}
15... Qf6 {[%clk 0:02:42.5]} 16. e7 {[%clk 0:02:34.1]} 16... Rf7 {[%clk
0:02:41.3]} 17. e4 {[%clk 0:02:29.9]} 17... f4 {[%clk 0:02:37.9]} 18. e5 {[%clk
0:02:22.9]} 18... dxe5 {[%clk 0:02:27.8]} 19. Bxh7+ {[%clk 0:02:19.8]} 19... Kh8
{[%clk 0:02:26.8]} 20. e8=Q+ {[%clk 0:02:19]} 20... Rxe8 {[%clk 0:02:24.2]} 21.
Bg6 {[%clk 0:02:18.5]} 21... Rfe7 {[%clk 0:02:20.2]} 22. Bxe8 {[%clk 0:02:17.9]}
22... Rxe8 {[%clk 0:02:21.1]} 23. Rae1 {[%clk 0:02:13.8]} 23... Ba6 {[%clk
0:02:16.6]} 24. Qa4 {[%clk 0:02:09.6]} 24... Nxa4 {[%clk 0:02:15.1]} 0-1

[Event "*** Titled Tuesday Blitz"]
[Site "Chess.com"]
[Date "2020.04.14"]
[Round "6"]
[White "stoleriu"]
[Black "Enriquack"]
[Result "1-0"]
[WhiteElo "2475"]
[BlackElo "2291"]
[TimeControl "180+1"]
[EndTime "10:59:13 PDT"]
[Termination "stoleriu won by resignation"]

1. e4 {[%clk 0:03:00.9]} 1... c5 {[%clk 0:03:00]} 2. Nc3 {[%clk 0:02:59.9]} 2...
e6 {[%clk 0:02:59.8]} 3. Nf3 {[%clk 0:02:58.7]} 3... a6 {[%clk 0:02:59.6]} 4. d4
{[%clk 0:02:58.2]} 4... cxd4 {[%clk 0:03:00.5]} 5. Nxd4 {[%clk 0:02:58.9]} 5...
b5 {[%clk 0:03:00.2]} 6. Bd3 {[%clk 0:02:58.2]} 6... Bb7 {[%clk 0:03:00.3]} 7.
O-O {[%clk 0:02:57.6]} 7... Nc6 {[%clk 0:02:59.4]} 8. Nxc6 {[%clk 0:02:56.5]}
8... Bxc6 {[%clk 0:02:59.2]} 9. Qe2 {[%clk 0:02:56.4]} 9... Qh4 {[%clk
0:02:33.6]} 10. f4 {[%clk 0:02:45.9]} 10... Nf6 {[%clk 0:02:27.8]} 11. Bd2
{[%clk 0:02:07.4]} 11... Bc5+ {[%clk 0:02:16.9]} 12. Kh1 {[%clk 0:02:07.3]}
12... Ng4 {[%clk 0:02:11.8]} 13. h3 {[%clk 0:02:01.9]} 13... Qg3 {[%clk
0:02:04.1]} 14. Qxg4 {[%clk 0:01:56.6]} 1-0

[Event "*** Titled Tuesday Blitz"]
[Site "Chess.com"]
[Date "2020.04.14"]
[Round "6"]
[White "francyIM"]
[Black "Er_is_geen_hoop_meer"]
[Result "1-0"]
[WhiteElo "2629"]
[BlackElo "2476"]
[TimeControl "180+1"]
[EndTime "10:59:23 PDT"]
[Termination "francyIM won by checkmate"]

1. d4 {[%clk 0:03:00.9]} 1... e5 {[%clk 0:02:58.4]} 2. dxe5 {[%clk 0:02:59.9]}
2... d6 {[%clk 0:02:58.9]} 3. e4 {[%clk 0:02:58.1]} 3... Nc6 {[%clk 0:02:58.4]}
4. Nf3 {[%clk 0:02:55.8]} 4... Bg4 {[%clk 0:02:57.8]} 5. Bb5 {[%clk 0:02:55.9]}
5... Qd7 {[%clk 0:02:57.6]} 6. h3 {[%clk 0:02:52.7]} 6... Bh5 {[%clk 0:02:56.5]}
7. Nc3 {[%clk 0:02:49.8]} 7... O-O-O {[%clk 0:02:55.9]} 8. Be3 {[%clk
0:02:49.7]} 8... a6 {[%clk 0:02:54.3]} 9. Ba4 {[%clk 0:02:49.4]} 9... dxe5
{[%clk 0:02:48.5]} 10. Qxd7+ {[%clk 0:02:46.8]} 10... Rxd7 {[%clk 0:02:49.4]}
11. Bxc6 {[%clk 0:02:47.2]} 11... bxc6 {[%clk 0:02:49.9]} 12. Nxe5 {[%clk
0:02:47.4]} 12... Rd6 {[%clk 0:02:50.1]} 13. g4 {[%clk 0:02:46.5]} 13... Bg6
{[%clk 0:02:43.2]} 14. Bc5 {[%clk 0:02:44.8]} 14... Rd8 {[%clk 0:02:15.9]} 15.
Bxf8 {[%clk 0:02:42.5]} 15... Rxf8 {[%clk 0:02:16.8]} 16. Nxc6 {[%clk
0:02:43.1]} 16... Kb7 {[%clk 0:02:05.3]} 17. Na5+ {[%clk 0:02:40.7]} 17... Kb6
{[%clk 0:01:57.7]} 18. Nc4+ {[%clk 0:02:32.1]} 18... Kc5 {[%clk 0:01:57.6]} 19.
Nd2 {[%clk 0:02:32.1]} 19... Kd4 {[%clk 0:01:57.1]} 20. f4 {[%clk 0:02:31.4]}
20... h5 {[%clk 0:01:55.9]} 21. f5 {[%clk 0:02:30.4]} 21... Bh7 {[%clk
0:01:55.9]} 22. Kf2 {[%clk 0:02:27.7]} 22... g6 {[%clk 0:01:53.5]} 23. Nf3+
{[%clk 0:02:25.6]} 23... Kc4 {[%clk 0:01:44]} 24. Rad1 {[%clk 0:02:25.3]} 24...
c5 {[%clk 0:01:44.3]} 25. a3 {[%clk 0:02:23.7]} 25... Rb8 {[%clk 0:01:41.9]} 26.
Ne5# {[%clk 0:02:23.3]} 1-0

[Event "*** Titled Tuesday Blitz"]
[Site "Chess.com"]
[Date "2020.04.14"]
[Round "6"]
[White "ecwinslow"]
[Black "RodinMihail"]
[Result "0-1"]
[WhiteElo "2095"]
[BlackElo "2476"]
[TimeControl "180+1"]
[EndTime "10:59:25 PDT"]
[Termination "RodinMihail won by resignation"]

1. d4 {[%clk 0:03:00.9]} 1... d5 {[%clk 0:02:59.7]} 2. c4 {[%clk 0:03:00.3]}
2... e6 {[%clk 0:03:00]} 3. Nc3 {[%clk 0:02:59.8]} 3... c6 {[%clk 0:02:59.9]} 4.
Nf3 {[%clk 0:02:57.4]} 4... Nf6 {[%clk 0:02:59.6]} 5. e3 {[%clk 0:02:50.7]} 5...
Nbd7 {[%clk 0:02:59.1]} 6. Bd3 {[%clk 0:02:48.6]} 6... Bd6 {[%clk 0:02:59.6]} 7.
Qc2 {[%clk 0:02:42.6]} 7... O-O {[%clk 0:02:58.8]} 8. O-O {[%clk 0:02:40.4]}
8... Qe7 {[%clk 0:02:58.8]} 9. e4 {[%clk 0:02:37.5]} 9... dxc4 {[%clk
0:02:58.9]} 10. Bxc4 {[%clk 0:02:36.7]} 10... e5 {[%clk 0:02:59.5]} 11. d5
{[%clk 0:02:30.7]} 11... Rd8 {[%clk 0:02:49.8]} 12. Bg5 {[%clk 0:02:26.7]} 12...
h6 {[%clk 0:02:47.8]} 13. Bh4 {[%clk 0:02:24.4]} 13... Nf8 {[%clk 0:02:47.9]}
14. Rad1 {[%clk 0:02:16.4]} 14... Ng6 {[%clk 0:02:47.7]} 15. Bxf6 {[%clk
0:02:14.6]} 15... Qxf6 {[%clk 0:02:47.3]} 16. Ne2 {[%clk 0:02:05.8]} 16... Bg4
{[%clk 0:02:43.5]} 17. Rd3 {[%clk 0:02:05.1]} 17... b5 {[%clk 0:02:37.9]} 18.
Bb3 {[%clk 0:02:03.2]} 18... c5 {[%clk 0:02:38.1]} 19. h3 {[%clk 0:01:43.8]}
19... Bd7 {[%clk 0:02:36.4]} 0-1

[Event "*** Titled Tuesday Blitz"]
[Site "Chess.com"]
[Date "2020.04.14"]
[Round "6"]
[White "JakeCarlosBanawa"]
[Black "DACF2905"]
[Result "1-0"]
[WhiteElo "2335"]
[BlackElo "2158"]
[TimeControl "180+1"]
[EndTime "10:59:42 PDT"]
[Termination "JakeCarlosBanawa won by resignation"]

1. d4 {[%clk 0:03:00.9]} 1... Nf6 {[%clk 0:02:58.7]} 2. c4 {[%clk 0:03:00.8]}
2... e6 {[%clk 0:02:57.7]} 3. Nc3 {[%clk 0:03:00.9]} 3... Bb4 {[%clk 0:02:57.1]}
4. Nf3 {[%clk 0:03:01.5]} 4... b6 {[%clk 0:02:56.7]} 5. Bg5 {[%clk 0:03:00.5]}
5... Bb7 {[%clk 0:02:56.3]} 6. e3 {[%clk 0:03:01]} 6... O-O {[%clk 0:02:55.7]}
7. Bd3 {[%clk 0:03:00.9]} 7... h6 {[%clk 0:02:55]} 8. Bh4 {[%clk 0:03:00]} 8...
c5 {[%clk 0:02:51.2]} 9. O-O {[%clk 0:02:53.5]} 9... d5 {[%clk 0:02:44.6]} 10.
cxd5 {[%clk 0:02:47.5]} 10... Bxc3 {[%clk 0:02:44.3]} 11. bxc3 {[%clk 0:02:47]}
11... exd5 {[%clk 0:02:43.5]} 12. Ne5 {[%clk 0:02:44.4]} 12... Nc6 {[%clk
0:02:42]} 13. Ng4 {[%clk 0:02:37]} 13... c4 {[%clk 0:01:42.9]} 14. Bc2 {[%clk
0:02:32.9]} 14... g5 {[%clk 0:01:41.1]} 15. Nxh6+ {[%clk 0:02:31.6]} 15... Kh8
{[%clk 0:01:40]} 16. Bxg5 {[%clk 0:02:32.2]} 16... Qd6 {[%clk 0:01:37.9]} 17.
Qf3 {[%clk 0:02:10.8]} 17... Ne4 {[%clk 0:01:35]} 18. Bxe4 {[%clk 0:02:02.4]}
18... dxe4 {[%clk 0:01:34.2]} 19. Bf6+ {[%clk 0:02:02.6]} 19... Kh7 {[%clk
0:01:32.6]} 20. Qf5+ {[%clk 0:02:02.3]} 1-0

[Event "*** Titled Tuesday Blitz"]
[Site "Chess.com"]
[Date "2020.04.14"]
[Round "6"]
[White "serhanberat_ozdemir"]
[Black "ketster"]
[Result "1-0"]
[WhiteElo "2439"]
[BlackElo "2270"]
[TimeControl "180+1"]
[EndTime "10:59:43 PDT"]
[Termination "serhanberat_ozdemir won by checkmate"]

1. e4 {[%clk 0:03:00.9]} 1... e5 {[%clk 0:02:58.2]} 2. Nf3 {[%clk 0:03:01.2]}
2... Nc6 {[%clk 0:02:58.3]} 3. d4 {[%clk 0:03:01.4]} 3... exd4 {[%clk
0:02:57.7]} 4. Bc4 {[%clk 0:03:01.8]} 4... Nf6 {[%clk 0:02:57]} 5. e5 {[%clk
0:03:01.3]} 5... d5 {[%clk 0:02:56.7]} 6. Bb5 {[%clk 0:03:01.5]} 6... Ne4 {[%clk
0:02:55.4]} 7. Nxd4 {[%clk 0:03:01.6]} 7... Bd7 {[%clk 0:02:53.9]} 8. Bxc6
{[%clk 0:03:01.5]} 8... bxc6 {[%clk 0:02:50.6]} 9. O-O {[%clk 0:03:01.7]} 9...
Bc5 {[%clk 0:02:46.1]} 10. f3 {[%clk 0:03:01.6]} 10... Ng5 {[%clk 0:02:45.8]}
11. f4 {[%clk 0:02:59.8]} 11... Ne4 {[%clk 0:02:45.8]} 12. Be3 {[%clk
0:02:48.9]} 12... Bb6 {[%clk 0:02:45.5]} 13. Nd2 {[%clk 0:02:44.5]} 13... Nxd2
{[%clk 0:02:30.1]} 14. Qxd2 {[%clk 0:02:45.4]} 14... c5 {[%clk 0:02:29.5]} 15.
Nf3 {[%clk 0:02:44.4]} 15... d4 {[%clk 0:02:29.5]} 16. Bf2 {[%clk 0:02:43.6]}
16... Bc6 {[%clk 0:02:20.7]} 17. Bh4 {[%clk 0:02:43.4]} 17... Qd5 {[%clk
0:02:19]} 18. f5 {[%clk 0:02:43.1]} 18... c4 {[%clk 0:02:14.9]} 19. Qg5 {[%clk
0:02:28.9]} 19... Bc5 {[%clk 0:01:39.8]} 20. Rae1 {[%clk 0:02:17.7]} 20... O-O
{[%clk 0:01:32.8]} 21. f6 {[%clk 0:02:14]} 21... g6 {[%clk 0:01:31.2]} 22. Qh6
{[%clk 0:02:14.1]} 22... Rfe8 {[%clk 0:01:30.5]} 23. Qg7# {[%clk 0:02:12.8]} 1-0

[Event "*** Titled Tuesday Blitz"]
[Site "Chess.com"]
[Date "2020.04.14"]
[Round "6"]
[White "gmjoey1"]
[Black "chenxiaoyuer"]
[Result "1-0"]
[WhiteElo "2565"]
[BlackElo "2103"]
[TimeControl "180+1"]
[EndTime "11:00:01 PDT"]
[Termination "gmjoey1 won by checkmate"]

1. e4 {[%clk 0:03:00.9]} 1... c5 {[%clk 0:02:59.6]} 2. c3 {[%clk 0:03:00.1]}
2... d5 {[%clk 0:02:59.2]} 3. exd5 {[%clk 0:03:00.1]} 3... Qxd5 {[%clk
0:02:58.8]} 4. d4 {[%clk 0:03:01]} 4... Nc6 {[%clk 0:02:53.8]} 5. Nf3 {[%clk
0:03:00.9]} 5... g6 {[%clk 0:02:53.8]} 6. Na3 {[%clk 0:02:58.6]} 6... Bg7 {[%clk
0:02:51.2]} 7. Nb5 {[%clk 0:02:58]} 7... Qd8 {[%clk 0:02:44.3]} 8. Bf4 {[%clk
0:02:57.1]} 8... e5 {[%clk 0:02:40.4]} 9. dxe5 {[%clk 0:02:55.7]} 9... Qxd1+
{[%clk 0:02:25.7]} 10. Rxd1 {[%clk 0:02:53.7]} 10... Nge7 {[%clk 0:02:25.2]} 11.
Nc7+ {[%clk 0:02:52]} 11... Kf8 {[%clk 0:02:21.4]} 12. Nxa8 {[%clk 0:02:52.1]}
12... Bg4 {[%clk 0:02:15.2]} 13. Be2 {[%clk 0:02:50.6]} 13... Bxf3 {[%clk
0:02:13.1]} 14. Bxf3 {[%clk 0:02:49.5]} 14... h5 {[%clk 0:02:14]} 15. h4 {[%clk
0:02:47.3]} 15... Bxe5 {[%clk 0:02:09]} 16. Bxe5 {[%clk 0:02:45.7]} 16... Nxe5
{[%clk 0:02:09.6]} 17. Rd8+ {[%clk 0:02:44.4]} 17... Kg7 {[%clk 0:02:09.6]} 18.
Rxh8 {[%clk 0:02:44.5]} 18... Kxh8 {[%clk 0:02:10.5]} 19. Ke2 {[%clk 0:02:40.5]}
19... Nxf3 {[%clk 0:02:10.4]} 20. Kxf3 {[%clk 0:02:37.2]} 20... Nd5 {[%clk
0:02:11.3]} 21. Rd1 {[%clk 0:02:33.2]} 21... Nf6 {[%clk 0:02:07.1]} 22. Nc7
{[%clk 0:02:32.5]} 22... Kg7 {[%clk 0:02:06.9]} 23. Rd8 {[%clk 0:02:30.2]} 23...
a5 {[%clk 0:02:04.2]} 24. Ne8+ {[%clk 0:02:29]} 24... Nxe8 {[%clk 0:02:03.1]}
25. Rxe8 {[%clk 0:02:29.9]} 25... a4 {[%clk 0:02:03.9]} 26. Ra8 {[%clk 0:02:29]}
26... a3 {[%clk 0:02:04.8]} 27. Rxa3 {[%clk 0:02:27.8]} 27... b5 {[%clk
0:02:04.2]} 28. Ra5 {[%clk 0:02:27.1]} 28... b4 {[%clk 0:02:05.1]} 29. Rxc5
{[%clk 0:02:26.8]} 29... b3 {[%clk 0:02:06]} 30. axb3 {[%clk 0:02:25.8]} 30...
Kf6 {[%clk 0:02:06.9]} 31. Kf4 {[%clk 0:02:24.4]} 31... Ke6 {[%clk 0:02:07.8]}
32. b4 {[%clk 0:02:23.1]} 32... Kd6 {[%clk 0:02:08.7]} 33. g4 {[%clk 0:02:22.4]}
33... hxg4 {[%clk 0:02:08.1]} 34. Kxg4 {[%clk 0:02:23.3]} 34... f5+ {[%clk
0:02:09]} 35. Kg5 {[%clk 0:02:23]} 35... f4 {[%clk 0:02:09.9]} 36. Kxf4 {[%clk
0:02:22.3]} 36... Ke6 {[%clk 0:02:09.6]} 37. Kg5 {[%clk 0:02:22]} 37... Kf7
{[%clk 0:02:10.5]} 38. Rc6 {[%clk 0:02:21.1]} 38... Ke7 {[%clk 0:02:11.4]} 39.
Rxg6 {[%clk 0:02:20.7]} 39... Kd7 {[%clk 0:02:12.3]} 40. h5 {[%clk 0:02:20.7]}
40... Kc7 {[%clk 0:02:13.2]} 41. h6 {[%clk 0:02:20.8]} 41... Kb7 {[%clk
0:02:14.1]} 42. h7 {[%clk 0:02:20.8]} 42... Kc7 {[%clk 0:02:15]} 43. h8=Q {[%clk
0:02:20.5]} 43... Kb7 {[%clk 0:02:15.9]} 44. f4 {[%clk 0:02:20.5]} 44... Kc7
{[%clk 0:02:16.8]} 45. f5 {[%clk 0:02:19.3]} 45... Kb7 {[%clk 0:02:17.7]} 46.
Re6 {[%clk 0:02:17.9]} 46... Kc7 {[%clk 0:02:18.6]} 47. f6 {[%clk 0:02:16.8]}
47... Kb7 {[%clk 0:02:19.5]} 48. f7 {[%clk 0:02:14.6]} 48... Kc7 {[%clk
0:02:20.4]} 49. Kf5 {[%clk 0:02:13.6]} 49... Kb7 {[%clk 0:02:21.3]} 50. Qg7
{[%clk 0:02:11.9]} 50... Kc7 {[%clk 0:02:22.2]} 51. f8=Q# {[%clk 0:02:10.9]} 1-0

[Event "*** Titled Tuesday Blitz"]
[Site "Chess.com"]
[Date "2020.04.14"]
[Round "6"]
[White "TastyTablet"]
[Black "kasparicy"]
[Result "1-0"]
[WhiteElo "2580"]
[BlackElo "2342"]
[TimeControl "180+1"]
[EndTime "11:00:02 PDT"]
[Termination "TastyTablet won on time"]

1. e4 {[%clk 0:03:00.9]} 1... c5 {[%clk 0:02:51]} 2. Nf3 {[%clk 0:02:54.6]} 2...
d6 {[%clk 0:02:50.4]} 3. d4 {[%clk 0:02:55.1]} 3... cxd4 {[%clk 0:02:51.3]} 4.
Nxd4 {[%clk 0:02:54.5]} 4... Nf6 {[%clk 0:02:51.6]} 5. Nc3 {[%clk 0:02:54.8]}
5... a6 {[%clk 0:02:50.9]} 6. f3 {[%clk 0:02:55.2]} 6... e6 {[%clk 0:02:50.5]}
7. Be3 {[%clk 0:02:55.1]} 7... b5 {[%clk 0:02:50.2]} 8. Qd2 {[%clk 0:02:54.2]}
8... b4 {[%clk 0:02:50.5]} 9. Na4 {[%clk 0:02:53.4]} 9... Nbd7 {[%clk
0:02:49.6]} 10. g4 {[%clk 0:02:52.9]} 10... h6 {[%clk 0:02:48.7]} 11. O-O-O
{[%clk 0:02:51.9]} 1-0

[Event "*** Titled Tuesday Blitz"]
[Site "Chess.com"]
[Date "2020.04.14"]
[Round "6"]
[White "talman67"]
[Black "LordIron"]
[Result "0-1"]
[WhiteElo "2508"]
[BlackElo "2223"]
[TimeControl "180+1"]
[EndTime "11:00:12 PDT"]
[Termination "LordIron won by resignation"]

1. e4 {[%clk 0:03:00.9]} 1... c5 {[%clk 0:02:58.9]} 2. Nf3 {[%clk 0:03:00.9]}
2... d6 {[%clk 0:02:59.1]} 3. d4 {[%clk 0:03:01.4]} 3... Nf6 {[%clk 0:02:59.7]}
4. Nc3 {[%clk 0:03:01]} 4... cxd4 {[%clk 0:03:00]} 5. Nxd4 {[%clk 0:03:01.9]}
5... a6 {[%clk 0:03:00.1]} 6. h3 {[%clk 0:03:01.7]} 6... e5 {[%clk 0:02:57.5]}
7. Nb3 {[%clk 0:03:01.8]} 7... h5 {[%clk 0:02:56.2]} 8. Bg5 {[%clk 0:03:00.7]}
8... Be6 {[%clk 0:02:54.1]} 9. a4 {[%clk 0:02:58.8]} 9... Nbd7 {[%clk
0:02:51.9]} 10. a5 {[%clk 0:02:58.9]} 10... Be7 {[%clk 0:02:47.7]} 11. Be2
{[%clk 0:02:59.3]} 11... Rc8 {[%clk 0:02:47.8]} 12. O-O {[%clk 0:02:59.4]} 12...
Rxc3 {[%clk 0:02:15.2]} 13. bxc3 {[%clk 0:03:00.3]} 13... Nxe4 {[%clk 0:02:15]}
14. Bxe7 {[%clk 0:02:59.9]} 14... Qxe7 {[%clk 0:02:14.1]} 15. Bf3 {[%clk
0:02:59.2]} 15... d5 {[%clk 0:01:52.8]} 16. c4 {[%clk 0:02:55.2]} 16... Ndf6
{[%clk 0:01:40.5]} 17. cxd5 {[%clk 0:02:48.7]} 17... Bxd5 {[%clk 0:01:41.4]} 18.
Re1 {[%clk 0:02:49.4]} 18... O-O {[%clk 0:01:31.6]} 19. Ra4 {[%clk 0:02:49.1]}
19... Nc3 {[%clk 0:01:29.5]} 20. Qa1 {[%clk 0:02:48.9]} 20... Nxa4 {[%clk
0:01:28.7]} 21. Qxa4 {[%clk 0:02:49.8]} 21... Bxf3 {[%clk 0:01:24]} 22. gxf3
{[%clk 0:02:50.7]} 22... Nd5 {[%clk 0:01:22.9]} 23. Qe4 {[%clk 0:02:48.1]} 23...
Nf4 {[%clk 0:01:12.9]} 24. Kh2 {[%clk 0:02:48.6]} 24... Qh4 {[%clk 0:01:09.5]}
0-1

[Event "*** Titled Tuesday Blitz"]
[Site "Chess.com"]
[Date "2020.04.14"]
[Round "6"]
[White "Gandrade2"]
[Black "erlesfar"]
[Result "0-1"]
[WhiteElo "2010"]
[BlackElo "2260"]
[TimeControl "180+1"]
[EndTime "11:00:12 PDT"]
[Termination "erlesfar won by resignation"]

1. d4 {[%clk 0:03:00.9]} 1... Nf6 {[%clk 0:02:58.9]} 2. c4 {[%clk 0:03:01.4]}
2... c5 {[%clk 0:02:58.4]} 3. d5 {[%clk 0:03:01.2]} 3... b5 {[%clk 0:02:58.1]}
4. cxb5 {[%clk 0:03:01.3]} 4... a6 {[%clk 0:02:57.3]} 5. bxa6 {[%clk 0:03:01.6]}
5... Bxa6 {[%clk 0:02:55.6]} 6. Nc3 {[%clk 0:03:02]} 6... g6 {[%clk 0:02:55.3]}
7. g3 {[%clk 0:03:01.3]} 7... d6 {[%clk 0:02:54.5]} 8. Bg2 {[%clk 0:03:01.3]}
8... Bg7 {[%clk 0:02:54.1]} 9. Nf3 {[%clk 0:03:01.3]} 9... Nbd7 {[%clk
0:02:53.8]} 10. Rb1 {[%clk 0:03:00.7]} 10... O-O {[%clk 0:02:53.3]} 11. O-O
{[%clk 0:02:59.3]} 11... Qa5 {[%clk 0:02:52.5]} 12. Bd2 {[%clk 0:02:53.5]} 12...
Rfb8 {[%clk 0:02:51.1]} 13. b3 {[%clk 0:02:50.3]} 13... Qa3 {[%clk 0:02:49.6]}
14. Ne1 {[%clk 0:02:50.5]} 14... Ne8 {[%clk 0:02:44.6]} 15. Nc2 {[%clk
0:02:49.7]} 15... Qa5 {[%clk 0:02:43.7]} 16. Na4 {[%clk 0:02:19.6]} 16... Qd8
{[%clk 0:02:42.5]} 17. Re1 {[%clk 0:02:14.3]} 17... Nc7 {[%clk 0:02:41.7]} 18.
Bc3 {[%clk 0:01:55.5]} 18... Nf6 {[%clk 0:02:39.3]} 19. h3 {[%clk 0:01:40.5]}
19... Bb5 {[%clk 0:02:35]} 20. Ne3 {[%clk 0:00:58.2]} 20... Bxa4 {[%clk
0:02:18]} 21. bxa4 {[%clk 0:00:59.1]} 21... Rxb1 {[%clk 0:02:17.3]} 22. Bb2
{[%clk 0:01:00]} 22... Rxd1 {[%clk 0:02:13.6]} 23. Bc3 {[%clk 0:01:00.9]} 0-1

[Event "*** Titled Tuesday Blitz"]
[Site "Chess.com"]
[Date "2020.04.14"]
[Round "6"]
[White "Hadza_3"]
[Black "Dare-Dare"]
[Result "0-1"]
[WhiteElo "2385"]
[BlackElo "2205"]
[TimeControl "180+1"]
[EndTime "11:00:13 PDT"]
[Termination "Dare-Dare won by resignation"]

1. e4 {[%clk 0:03:00.9]} 1... e6 {[%clk 0:02:58]} 2. Nf3 {[%clk 0:03:00.6]} 2...
d5 {[%clk 0:02:58.3]} 3. e5 {[%clk 0:03:00.7]} 3... c5 {[%clk 0:02:58.4]} 4. g3
{[%clk 0:03:01.6]} 4... Nc6 {[%clk 0:02:58.7]} 5. Bg2 {[%clk 0:03:02.5]} 5... f5
{[%clk 0:02:58.4]} 6. exf6 {[%clk 0:03:02.3]} 6... Nxf6 {[%clk 0:02:58.5]} 7.
O-O {[%clk 0:03:03.2]} 7... Bd6 {[%clk 0:02:58.8]} 8. d3 {[%clk 0:03:03.1]} 8...
O-O {[%clk 0:02:58.9]} 9. Qe2 {[%clk 0:03:04]} 9... e5 {[%clk 0:02:57.5]} 10. c4
{[%clk 0:03:04.2]} 10... e4 {[%clk 0:02:45.3]} 11. dxe4 {[%clk 0:02:54.3]} 11...
dxe4 {[%clk 0:02:44.7]} 12. Nfd2 {[%clk 0:02:40.5]} 12... Nd4 {[%clk 0:02:44.7]}
13. Qd1 {[%clk 0:02:06.7]} 13... Bg4 {[%clk 0:02:44.1]} 14. f3 {[%clk
0:02:00.4]} 14... e3 {[%clk 0:02:44.3]} 15. fxg4 {[%clk 0:01:47.8]} 15... e2
{[%clk 0:02:44.3]} 16. Qa4 {[%clk 0:01:43.8]} 16... exf1=Q+ {[%clk 0:02:43.7]}
17. Nxf1 {[%clk 0:01:44.4]} 17... Nxg4 {[%clk 0:02:38.3]} 18. Nc3 {[%clk
0:01:40.7]} 18... Qf6 {[%clk 0:02:12.4]} 19. Ne4 {[%clk 0:01:28.6]} 19... Ne2+
{[%clk 0:02:10.8]} 20. Kh1 {[%clk 0:01:25.9]} 20... Qd4 {[%clk 0:01:45.5]} 0-1